Cogmind - Beta 12 @@@ ROGUE MODE // 2023.05.19 @ 15:46:57 Player: Inkie Result: Destroyed by Y-64 Sentinel with KE Penetrator Performance ------------- Evolutions (3) 1500 Regions Visited (14) 2800 Robots Destroyed (229) 1145 Value Destroyed (10272) 10272 Prototype IDs (38) 760 Alien Tech Used (0) 0 Bonus (3014) 3014 TOTAL SCORE: 19491 Bonus ------- High Alert Combat Kills 1365 Follower Combat Kills 1069 Entered Garrisons 600 Friendly Fire -20 Cogmind --------- Core Integrity 0/700 Matter 300/300 Energy 82/100 System Corruption 4% Temperature Cool (9) Movement Core (1600) Ox31 Location -7/Lower Caves Parts ------- > --- POWER (1) -------- (None) > --- PROPULSION (4) --- (None) > --- UTILITY (6) ------ Advanced Cooling System Huge Storage Unit Improved Hardlight Generator Hacking Suite Hacking Suite Hacking Suite > --- WEAPON (2) ------- Thunder Hammer > --- INVENTORY (25) --- Improved Heavy Treads Improved Cooling System Advanced Terrain Scan Processor Encrypted Comm Array Cloak of Protection Heavy Reactive Plating Heavy Reactive Plating Hacking Suite Hacking Suite Authchip [Propulsion] Authchip [Device] Authchip [Armor] Long-range Tractor Beam Improved Trap Extractor (4/6 Shock) Improved Trap Extractor (4/6 Segregator) Advanced Trap Extractor (7/8 Blade) Smartbomb Launcher Peak State ------------ > --- POWER ------------ Deuterium Engine > --- PROPULSION ------- Improved Heavy Treads Improved Heavy Treads > --- UTILITY ---------- Advanced Cooling System Huge Storage Unit Improved Hardlight Generator Hacking Suite Hacking Suite Hacking Suite > --- WEAPON ----------- Heavy Linear Accelerator > --- INVENTORY -------- Micro Nuclear Core Improved Heavy Treads Improved Heavy Treads Advanced Terrain Scan Processor Cloak of Protection Heavy Reactive Plating Heavy Reactive Plating Hacking Suite Hacking Suite Hacking Suite Authchip [Propulsion] Improved Trap Extractor Improved Trap Extractor Advanced Trap Extractor Improved EM Pulse Cannon Smartbomb Launcher Improved Datajack Thunder Hammer [Rating: 79] Favorites ----------- Power Improved Ion Engine Engine Improved Ion Engine Power Core Light Nuclear Core Propulsion Light Treads Treads Light Treads Wheel Wheel Hover Unit Combat Gravmag System Flight Unit Improved VTOL Module Utility Hacking Suite Device Improved Heat Sink Storage Huge Storage Unit Processor Machine Analyzer Hackware Hacking Suite Protection Hardened Medium Armor Plating Weapon Advanced Beam Rifle Energy Gun Advanced Beam Rifle Energy Cannon Ion Cannon Ballistic Gun Precision Assault Rifle Ballistic Cannon Heavy Linear Accelerator Launcher Smartbomb Launcher Impact Weapon Thunder Hammer Slashing Weapon Katana Special Melee Weapon Improved Datajack Build | -11 -10 -10 -9 -9 -9 -8 -8 -8 -8 -8 -7 -7 -7 -7 ------- Run | Jun Mat Min Mat Min Exi Min Mat Gar Sto Gar Fac Gar Fac Low Slots Evolved 6 | . . . 2 . . . 2 . . . 2 . . . Power . | . . . . . . . . . . . . . . . Propulsion 2 | . . . . . . . . . . . 2 . . . Utility 4 | . . . 2 . . . 2 . . . . . . . Weapon . | . . . . . . . . . . . . . . . Parts Attached 229 | 6 4 1 28 . . 2 43 9 21 13 32 33 32 5 Power 21 | 1 . 1 3 . . . 5 2 . 2 . 2 4 1 Engine 16 | 1 . 1 3 . . . 4 . . 1 . 2 4 . Core 5 | . . . . . . . 1 2 . 1 . . . 1 Reactor . | . . . . . . . . . . . . . . . Propulsion 42 | 2 . . 5 . . . 8 2 3 3 9 7 3 . Treads 30 | 2 . . 5 . . . 5 1 2 2 7 3 3 . Leg . | . . . . . . . . . . . . . . . Wheel 4 | . . . . . . . 1 1 1 1 . . . . Hover 7 | . . . . . . . 1 . . . 2 4 . . Flight 1 | . . . . . . . 1 . . . . . . . Utility 70 | 1 2 . 10 . . . 11 3 9 5 7 5 16 1 Device 46 | . 1 . 5 . . . 5 2 8 5 2 4 13 1 Storage 4 | 1 1 . 2 . . . . . . . . . . . Processor 1 | . . . . . . . . . . . 1 . . . Hackware 4 | . . . . . . . 2 . . . 1 . 1 . Protection 15 | . . . 3 . . . 4 1 1 . 3 1 2 . Artifact . | . . . . . . . . . . . . . . . Weapon 96 | 2 2 . 10 . . 2 19 2 9 3 16 19 9 3 Energy Gun 19 | 2 1 . . . . . 3 2 5 2 1 2 1 . Energy Cannon 30 | . . . 5 . . 1 9 . . . 1 10 2 2 Ballistic Gun 13 | . . . 2 . . . 2 . . . 8 1 . . Ballistic Cannon 5 | . . . 1 . . . . . . . . . 4 . Launcher 12 | . 1 . 2 . . 1 5 . . . . 3 . . Special Weapon . | . . . . . . . . . . . . . . . Impact Weapon 10 | . . . . . . . . . . . 5 3 1 1 Slashing Weapon 4 | . . . . . . . . . 3 1 . . . . Piercing Weapon . | . . . . . . . . . . . . . . . Special Melee Weapon 3 | . . . . . . . . . 1 . 1 . 1 . Unidentified Prototypes 11 | . . . . . . . 4 . 1 . 4 . 2 . Parts Lost 53 | . . 1 10 . . 1 10 6 2 3 2 8 6 4 Power 8 | . . 1 1 . . . . 2 . 1 . 1 1 1 Propulsion 16 | . . . 3 . . . 2 1 1 2 1 4 . 2 Utility 16 | . . . 4 . . 1 3 1 1 . . 2 4 . Weapon 13 | . . . 2 . . . 5 2 . . 1 1 1 1 Highest Loss Streak 4 | . . 1 3 . . 1 4 3 1 2 2 4 3 4 To Critical Strikes . | . . . . . . . . . . . . . . . Average Slot Usage (%) 92 | . 93 98 89 100 100 88 97 98 95 99 98 87 75 75 Engine 6 | . 14 12 7 11 11 11 7 4 . 6 . 5 6 . Core 2 | . . . . . . . 1 3 9 2 7 1 . 6 Treads 17 | . 28 28 21 22 22 22 17 6 9 13 29 13 14 15 Wheel 1 | . . . . . . . . 11 8 4 . . . . Device 13 | . 7 14 20 22 22 11 13 18 15 18 4 11 8 14 Storage 9 | . 14 14 11 11 11 11 9 9 9 9 7 7 7 7 Hackware 14 | . . . . . . . 15 18 18 18 22 23 21 23 Protection 7 | . . . 7 11 11 11 12 9 8 9 5 1 5 . Energy Gun 7 | . 27 28 . . . . 6 18 13 17 3 1 . . Energy Cannon 6 | . . . 14 22 22 21 10 . . . . 5 1 2 Ballistic Gun 1 | . . . 5 . . . . . . . 7 2 . . Naked Turns . | . . . . . . . . . . . . . . . Heaviest Build 129 | 13 21 19 106 106 106 106 111 102 101 112 116 118 129 103 Greatest Support 150 | 40 40 40 43 43 43 43 43 26 16 45 85 150 150 150 Greatest Overweight (x) 10 | . . . 2 2 2 2 10 6 10 10 1 2 . . Average Overweight (x) 2 | . . . . 2 2 2 2 4 8 6 1 . . . Largest Inventory Capacity 25 | 8 10 10 25 25 25 25 25 25 25 25 25 25 25 25 Average Capacity 23 | 6 9 10 15 25 25 25 25 25 25 25 25 25 25 25 Most Carried 25 | 1 10 10 15 16 17 18 25 25 25 25 25 25 25 24 Average Carried 21 | . 5 10 13 15 16 17 24 24 24 23 24 23 23 22 Final Capacity 25 | 8 10 10 25 25 25 25 25 25 25 25 25 25 25 25 Final Carried 25 | 1 10 10 14 16 17 18 25 25 25 25 24 25 23 21 Class Distribution -------------------- 29% | Trapper-Mutant 26% | Mutant 25% | Scavenger-Mutant 14% | Hacker-Mutant 4% | Commander-Mutant Dominant Class ---------------- Mutant | -10/Materials Mutant | -10/Mines Mutant | -9/Materials Mutant | -9/Mines Mutant | -9/Exiles Mutant | -8/Mines Scavenger-Mutant | -8/Materials Scavenger-Mutant | -8/Garrison Scavenger-Mutant | -8/Storage Trapper-Mutant | -8/Garrison Hacker-Mutant | -7/Factory Trapper-Mutant | -7/Garrison Trapper-Mutant | -7/Factory Trapper-Mutant | -7/Lower Caves Resources | -11 -10 -10 -9 -9 -9 -8 -8 -8 -8 -8 -7 -7 -7 -7 ----------- Run | Jun Mat Min Mat Min Exi Min Mat Gar Sto Gar Fac Gar Fac Low Matter Collected 4609 | 244 86 10 345 16 . 42 573 75 235 77 802 798 956 350 Remotely . | . . . . . . . . . . . . . . . Salvage Created 9719 | . 264 161 1348 90 . 129 1804 957 533 107 1232 1723 798 573 Parts 452 | . 17 9 74 6 . 4 91 33 42 2 53 71 40 10 Haulers Intercepted 7 | . . . . . . . 2 . 2 . 2 . 1 . Recyclers Shooed 8 | . . . 1 . . . 4 . . . 1 . 2 . Parts Field Recycled . | . . . . . . . . . . . . . . . Retrieved Matter . | . . . . . . . . . . . . . . . Parts Self-Destructed 7 | . . . . . . . . . . . . . . 7 Prevented . | . . . . . . . . . . . . . . . Kills | -11 -10 -10 -9 -9 -9 -8 -8 -8 -8 -8 -7 -7 -7 -7 ------- Run | Jun Mat Min Mat Min Exi Min Mat Gar Sto Gar Fac Gar Fac Low Combat Hostiles Destroyed 176 | . 9 4 29 2 . 3 33 24 11 1 10 20 23 7 Melee 5 | . . . 1 . . . . . 1 . . . . 3 Guns 66 | . 6 4 5 . . . 5 22 10 1 10 3 . . Cannons 69 | . . . 15 2 . 1 17 . . . . 8 23 3 AOE 28 | . 3 . 8 . . 2 10 . . . . 5 . . Classes Destroyed 16 | . 4 . 6 1 . . 1 2 . . 1 . . 1 Worker 7 | . . . 1 . . . 3 . . . 2 . 1 . Builder 7 | . . . 1 . . . 5 . . . . . 1 . Tunneler 3 | . 1 . 1 . . . 1 . . . . . . . Hauler 7 | . . . . . . . 2 . 2 . 2 . 1 . Recycler 16 | . . . 3 . . . 3 . 1 . 8 . 1 . Mechanic 3 | . . . 1 . . . 1 . . . . . 1 . Operator 8 | . 1 . 3 . . . 3 . . . 1 . . . Watcher 2 | . . . 1 . . . 1 . . . . . . . Swarmer 37 | . 6 . 7 . . . 8 6 5 . . . . 5 Grunt 95 | . 3 4 14 1 . 3 21 12 4 1 6 10 16 . Brawler 3 | . . . . . . . . 1 . . . 1 . 1 Duelist 5 | . . . . 1 . . . . . . . 2 1 1 Sentry 23 | . . . 8 . . . 4 4 2 . 2 2 1 . Hunter 5 | . . . . . . . . 1 . . . 3 1 . Programmer 8 | . . . . . . . . . . . 2 2 4 . Decomposer 1 | . . . . . . . . . . . . . . 1 Samaritan 2 | . . . . . . . . . . . . . . 2 Best Kill Streak 10 | . 4 3 7 2 . 3 10 5 3 1 4 4 3 4 Combat Bots Only 6 | . 3 3 6 2 . 3 5 5 3 1 3 4 3 4 Max Kills in Single Turn 3 | . 2 1 3 1 . 1 3 2 1 1 2 2 1 1 Gunslinging 1 | . . . . . . . . 1 . . . . . . Exploded 3 | . 2 . 2 . . 1 3 . . . . 2 . . Melee 1 | . . . 1 . . . . . 1 . . . . 1 Uniques/NPCs Destroyed . | . . . . . . . . . . . . . . . Combat | -11 -10 -10 -9 -9 -9 -8 -8 -8 -8 -8 -7 -7 -7 -7 -------- Run | Jun Mat Min Mat Min Exi Min Mat Gar Sto Gar Fac Gar Fac Low Damage Taken 11108 | . 279 227 1416 63 . 80 1995 1146 444 267 1135 1124 2300 632 Core 1547 | . 75 58 282 . . 20 174 145 62 22 113 117 372 107 Absorbed by Shields 39 | . . . . . . . . . . 21 . . 18 . Reduced by Siege Mode 94 | . . . . . . . . . . . . . 46 48 Regen/Repaired (Parts) 1367 | . . . 189 . . . . . 367 . 143 . 668 . Core Remaining (%) 49 | 100 . 46 . . . 24 . . . 26 . . . . Volleys Fired 636 | . 23 17 61 3 . 5 107 84 21 24 71 126 86 8 Largest 2 | . 2 2 2 2 . 2 2 2 2 2 2 2 1 1 Hottest 173 | . 90 90 120 120 . 120 122 122 122 122 122 173 83 69 Shots Fired 1038 | . 43 34 114 6 . 8 202 166 41 49 121 156 89 9 Gun 616 | . 40 34 32 . . . 56 166 41 49 112 86 . . Cannon 388 | . . . 76 6 . 6 135 . . . 9 58 89 9 Launcher 34 | . 3 . 6 . . 2 11 . . . . 12 . . Special . | . . . . . . . . . . . . . . . Kinetic 284 | . . . 22 . . . 18 . . . 96 73 75 . Thermal 660 | . 40 34 86 6 . 6 173 166 41 49 25 34 . . Explosive 34 | . 3 . 6 . . 2 11 . . . . 12 . . Electromagnetic 60 | . . . . . . . . . . . . 37 14 9 Robot Hit Streak 44 | . 8 7 11 3 . 4 15 9 6 7 30 44 17 11 Robot Miss Streak 4 | . 2 1 3 1 . 1 4 4 2 2 3 3 2 . Penetration Max . | . . . . . . . . . . . . . . . Secondary Targets 8 | . . . 1 . . . . 5 2 . . . . . Max Gunslinging Chain 1 | . . . 1 . . . . 1 1 . . . . . Shots Hit Robots 677 | . 23 25 76 3 . 6 137 83 30 13 94 112 58 17 Core Hits 367 | . 16 10 48 3 . 7 78 33 18 5 38 74 28 9 Critical Kills 5 | . . . . . . . 1 . . . 1 1 . 2 Critical Parts Destroyed 5 | . . . . . . . . . . . . 3 . 2 Critical Strikes 29 | . . 2 . . . . 2 6 4 2 1 4 4 4 Burn 14 | . . 2 . . . . 1 6 3 2 . . . . Meltdown 1 | . . . . . . . 1 . . . . . . . Destroy 4 | . . . . . . . . . . . 1 3 . . Blast 4 | . . . . . . . . . . . . . 4 . Smash 5 | . . . . . . . . . . . . 1 . 4 Sever 1 | . . . . . . . . . 1 . . . . . Melee Attacks 48 | . . . . . . . . . 9 . 11 16 2 10 Impact 38 | . . . . . . . . . . . 11 16 1 10 Slashing 9 | . . . . . . . . . 9 . . . . . Piercing . | . . . . . . . . . . . . . . . Sneak Attacks 6 | . . . . . . . . . 2 . . . 1 3 Combat Hostiles 1 | . . . . . . . . . 1 . . . . . Follow-up Attacks . | . . . . . . . . . . . . . . . Damage Inflicted 21971 | . 415 290 2360 70 . 297 4316 1801 794 260 2088 4049 4323 908 Guns 7697 | . 283 289 454 . . . 679 1700 500 260 1845 1687 . . Cannons 9299 | . . . 1169 70 . 117 2227 . . . 238 1048 4179 251 Explosions 3627 | . 132 . 702 . . 180 1375 101 . . . 1137 . . Melee 1115 | . . . . . . . . . 294 . . 177 . 644 Ramming 233 | . . 1 35 . . . 35 . . . 5 . 144 13 Kinetic 7512 | . . . 334 . . . 279 . . . 1665 1365 3869 . Thermal 8517 | . 283 289 1471 70 . 117 2627 1700 500 260 418 782 . . Explosive 3445 | . 132 . 520 . . 180 1375 101 . . . 1137 . . Electromagnetic 1149 | . . . . . . . . . . . . 588 310 251 Impact 821 | . . . . . . . . . . . . 177 . 644 Slashing 294 | . . . . . . . . . 294 . . . . . Piercing . | . . . . . . . . . . . . . . . Highest Corruption 4 | . 1 1 . . . . . . . 1 2 3 4 4 Average Corruption 2 | . 1 1 . . . . . . . 1 1 2 3 4 Corruption Purged . | . . . . . . . . . . . . . . . Corruption Blocked . | . . . . . . . . . . . . . . . Effects 107 | . 1 2 . . . . . . . 14 10 21 49 10 Message Errors 30 | . 1 . . . . . . . . 5 2 8 9 5 Matter Fused 23 | . . . . . . . . . . 4 3 4 10 2 Heat Flow Errors 10 | . . . . . . . . . . . 2 . 7 1 Energy Discharges 11 | . . . . . . . . . . 1 1 . 9 . Parts Rejected 1 | . . . . . . . . . . . 1 . . . Parts Fused 1 | . . . . . . . . . . 1 . . . . Data Loss (minor) 11 | . . 2 . . . . . . . . 1 3 5 . Data Loss (major) 5 | . . . . . . . . . . . . 3 1 1 Misfires 8 | . . . . . . . . . . 2 . . 5 1 Alerts 3 | . . . . . . . . . . 1 . 1 1 . Weapon Failures 4 | . . . . . . . . . . . . 2 2 . Overload Shots . | . . . . . . . . . . . . . . . Overflow Damage 1252 | . . . 44 . . 16 63 . . . 5 128 518 478 Projectiles 628 | . . . 14 . . . 20 . . . 5 23 518 48 Explosions 132 | . . . 30 . . 16 43 . . . . 43 . . Melee 492 | . . . . . . . . . . . . 62 . 430 Knockbacks 21 | . . . . . . . . . . . 1 1 19 . Impact 2 | . . . . . . . . . . . 1 1 . . Kinetic 18 | . . . . . . . . . . . . . 18 . Secondary 1 | . . . . . . . . . . . . . 1 . Self-Inflicted Damage 311 | . 32 . 188 . . . 91 . . . . . . . Shots 10 | . 1 . 5 . . . 4 . . . . . . . Rammed 31 | . . 1 12 . . . 3 . . . . . 14 1 Targets Rammed 35 | . . 1 13 . . . 3 . . . 1 . 15 2 Kicked . | . . . . . . . . . . . . . . . Crushed 4 | . . . 1 . . . . . . . 1 . 1 1 Highest Temperature 318 | . 210 2 318 9 . 77 288 39 14 . 236 297 301 81 Average Temperature 78 | . 97 2 61 5 . 33 86 8 10 . 41 119 90 55 Received Heat Transfer 4027 | . 45 132 510 18 . 36 987 504 171 80 363 198 875 108 Effects 4 | . . . . . . . 1 . . . . 3 . . Energy Bleed 1 | . . . . . . . 1 . . . . . . . Interference 3 | . . . . . . . . . . . . 3 . . Siege Activations 13 | . . . . . . . . . . . . . 12 1 Total Turns 122 | . . . . . . . . . . . . . 110 12 Longest Duration 18 | . . . . . . . . . . . . . 18 12 Robots Corrupted 3 | . . . . . . . . . . . . 3 . . Combat Hostiles 3 | . . . . . . . . . . . . 3 . . Parts Fried 15 | . . . . . . . . . . . . 7 3 5 Impact Corruptions 15 | . . . . . . . . . . . . 2 1 12 Robots Melted 3 | . . . . . . . 1 2 . . . . . . Combat Hostiles 3 | . . . . . . . 1 2 . . . . . . Parts Melted 20 | . . 4 2 . . . 6 7 . 1 . . . . Heat Transferred 15584 | . 768 893 2309 111 . 185 4403 3589 1147 591 683 905 . . Parts Sabotaged . | . . . . . . . . . . . . . . . Parts Stolen . | . . . . . . . . . . . . . . . Parts Stripped . | . . . . . . . . . . . . . . . Power Chain Reactions . | . . . . . . . . . . . . . . . Missiles Intercepted . | . . . . . . . . . . . . . . . Alert | -11 -10 -10 -9 -9 -9 -8 -8 -8 -8 -8 -7 -7 -7 -7 ------- Run | Jun Mat Min Mat Min Exi Min Mat Gar Sto Gar Fac Gar Fac Low Peak Influence 1649 | . 230 138 372 195 . 89 485 1256 871 1649 964 1271 870 . Initial 865 | . . 48 . 144 . . 34 120 612 476 865 344 667 . Average 536 | . 116 43 109 183 . 80 219 730 693 1195 653 756 710 . Maximum Alert Level 5 | . 1 . 1 . . . 2 4 3 5 3 4 3 . Low Security (%) 31 | 100 71 100 89 100 . 100 58 9 . . . . . . Level 1 5 | . 28 . 10 . . . 10 9 . . 4 7 . . Level 2 28 | . . . . . . . 31 28 55 14 47 39 43 . Level 3 23 | . . . . . . . . 37 44 17 48 35 56 . Level 4 8 | . . . . . . . . 15 . 54 . 17 . . Level 5 1 | . . . . . . . . . . 12 . . . . High Security . | . . . . . . . . . . . . . . . Max Security . | . . . . . . . . . . . . . . . Squads Dispatched 35 | . 1 . 5 . . . 5 . . . 7 . 17 . Investigation 9 | . . . 2 . . . 1 . . . 1 . 5 . Extermination 8 | . . . . . . . . . . . 4 . 4 . Reinforcement 15 | . 1 . 3 . . . 4 . . . 2 . 5 . Assault 2 | . . . . . . . . . . . . . 2 . Garrison 1 | . . . . . . . . . . . . . 1 . Intercept . | . . . . . . . . . . . . . . . Searches Triggered . | . . . . . . . . . . . . . . . Construction Impeded 2 | . . . . . . . 2 . . . . . . . Haulers Reinforced 2 | . . . . . . . . . . . 1 . 1 . Active Scanning Responses . | . . . . . . . . . . . . . . . Cargo Convoy Interrupts . | . . . . . . . . . . . . . . . Stealth | -11 -10 -10 -9 -9 -9 -8 -8 -8 -8 -8 -7 -7 -7 -7 --------- Run | Jun Mat Min Mat Min Exi Min Mat Gar Sto Gar Fac Gar Fac Low Distress Signals 12 | . 3 . 4 . . . 3 . 1 . . . 1 . Communications Jammed . | . . . . . . . . . . . . . . . Distress Signals . | . . . . . . . . . . . . . . . Times Spotted 307 | . 13 4 43 2 . 3 67 33 21 20 19 17 53 12 Peak Tracking Total 11 | . 4 2 7 2 . 3 6 7 4 4 4 5 11 9 Tactical Retreats 19 | . 1 . 2 . . . 2 4 2 1 2 3 2 . Traps | -11 -10 -10 -9 -9 -9 -8 -8 -8 -8 -8 -7 -7 -7 -7 ------- Run | Jun Mat Min Mat Min Exi Min Mat Gar Sto Gar Fac Gar Fac Low Traps Triggered 30 | . 1 . 2 . . . 1 2 2 14 2 2 4 . Indirectly . | . . . . . . . . . . . . . . . Trap Hack Attempts 52 | . . . . . . . . . 19 . 20 . 13 . Triggered . | . . . . . . . . . . . . . . . Disarmed . | . . . . . . . . . . . . . . . Reprogrammed 14 | . . . . . . . . . 6 . 5 . 3 . Reused . | . . . . . . . . . . . . . . . Traps Extracted 13 | . . . . . . . . . 6 . 4 . 3 . Installed . | . . . . . . . . . . . . . . . Triggered . | . . . . . . . . . . . . . . . Most Traps Carried 15 | . . . . . . . . . 6 10 12 12 15 15 Machines | -11 -10 -10 -9 -9 -9 -8 -8 -8 -8 -8 -7 -7 -7 -7 ---------- Run | Jun Mat Min Mat Min Exi Min Mat Gar Sto Gar Fac Gar Fac Low Machines Disabled 34 | . . . 1 . . . 1 9 3 7 . 7 6 . Max in Single Turn 2 | . . . 1 . . . 1 2 1 1 . 1 1 . Garrison Relay 12 | . . . . . . . . 4 . 4 . 4 . . Phase Generator 1 | . . . . . . . . 1 . . . . . . Machines Repaired . | . . . . . . . . . . . . . . . Machines Sabotaged . | . . . . . . . . . . . . . . . Overloaded Fab Kills . | . . . . . . . . . . . . . . . Hacking | -11 -10 -10 -9 -9 -9 -8 -8 -8 -8 -8 -7 -7 -7 -7 --------- Run | Jun Mat Min Mat Min Exi Min Mat Gar Sto Gar Fac Gar Fac Low Machines Accessed 49 | . . . 6 . 2 . 8 4 5 3 9 2 10 . Terminals 32 | . . . 5 . . . 6 4 3 3 5 2 4 . Fabricators 3 | . . . . . . . . . . . 1 . 2 . Repair Stations 6 | . . . 1 . . . . . 1 . 1 . 3 . Recycling Units . | . . . . . . . . . . . . . . . Scanalyzers 3 | . . . . . . . 1 . . . 1 . 1 . Garrison Access 3 | . . . . . . . 1 . 1 . 1 . . . Total Hacks 135 | . . . 19 . 2 . 25 8 14 8 25 4 30 . Successful 80 | . . . 12 . 2 . 14 3 11 2 16 2 18 . Failed 55 | . . . 7 . . . 11 5 3 6 9 2 12 . Catastrophic 18 | . . . 3 . . . 6 2 . 1 3 . 3 . Database Lockouts . | . . . . . . . . . . . . . . . Manual 71 | . . . 10 . 1 . 18 5 5 4 14 4 10 . Terminals 84 | . . . 11 . . . 19 8 7 8 14 4 13 . Fabricators 7 | . . . . . . . . . . . 2 . 5 . Repair Stations 26 | . . . 8 . . . . . 6 . 3 . 9 . Recycling Units . | . . . . . . . . . . . . . . . Scanalyzers 11 | . . . . . . . 4 . . . 4 . 3 . Garrison Access 5 | . . . . . . . 2 . 1 . 2 . . . Terminal Hacks 26 | . . . 3 . 2 . 5 2 3 2 5 1 3 . Record 1 | . . . . . 1 . . . . . . . . . Part Schematic 1 | . . . . . . . . . . . 1 . . . Prototype ID Bank 2 | . . . 2 . . . . . . . . . . . Open Door 3 | . . . . . . . . 1 1 1 . . . . Branch Access Points 2 | . . . 1 . . . . . . . . . 1 . Garrison Index 1 | . . . . . . . . . . . . . 1 . Unreport Threat 8 | . . . . . . . 4 . 1 . 2 . 1 . Locate Traps 2 | . . . . . . . . . 1 . 1 . . . Reprogram Traps 1 | . . . . . . . . . . . 1 . . . Recall Reinforcements 1 | . . . . . . . 1 . . . . . . . Garrison Registry 3 | . . . . . . . . 1 . 1 . 1 . . EX-Prototype ID Bank 1 | . . . . . 1 . . . . . . . . . Fabricator Hacks 3 | . . . . . . . . . . . 1 . 2 . Load Schematic 3 | . . . . . . . . . . . 1 . 2 . Repair Station Hacks 21 | . . . 5 . . . . . 6 . 2 . 8 . Scan Component 11 | . . . 3 . . . . . 3 . 1 . 4 . Repair 10 | . . . 2 . . . . . 3 . 1 . 4 . Recycling Unit Hacks . | . . . . . . . . . . . . . . . Scanalyzer 9 | . . . . . . . 4 . . . 3 . 2 . Insert Component 4 | . . . . . . . 2 . . . 1 . 1 . Analyze 5 | . . . . . . . 2 . . . 2 . 1 . Garrison Access Hacks 3 | . . . . . . . 1 . 1 . 1 . . . Unlock Access 3 | . . . . . . . 1 . 1 . 1 . . . Unauthorized Hacks 18 | . . . 4 . . . 4 1 1 . 4 1 3 . Terminals 13 | . . . 4 . . . 3 1 1 . 2 1 1 . Assimilate 1 | . . . . . . . 1 . . . . . . . Botnet 10 | . . . 3 . . . 1 1 1 . 2 1 1 . Operators 2 | . . . 1 . . . 1 . . . . . . . Fabricators 3 | . . . . . . . . . . . 1 . 2 . Recompile 3 | . . . . . . . . . . . 1 . 2 . Repair Stations . | . . . . . . . . . . . . . . . Recycling Units . | . . . . . . . . . . . . . . . Scanalyzers . | . . . . . . . . . . . . . . . Garrison Access 2 | . . . . . . . 1 . . . 1 . . . Reprogram 2 | . . . . . . . 1 . . . 1 . . . Data Cores Recovered 2 | . . . . . . . 2 . . . . . . . Used . | . . . . . . . . . . . . . . . Hacking Detections 40 | . . . 6 . . . 8 3 3 2 8 2 8 . Full Trace Events 5 | . . . . . . . . . . 2 . . 3 . Feedback Events 1 | . . . . . . . . . . 1 . . . . Corruption 1 | . . . . . . . . . . 1 . . . . Feedback Blocked . | . . . . . . . . . . . . . . . Robot Schematics Acquired . | . . . . . . . . . . . . . . . Robots Built . | . . . . . . . . . . . . . . . Authchips . | . . . . . . . . . . . . . . . Time . | . . . . . . . . . . . . . . . Total Robot Build Rating . | . . . . . . . . . . . . . . . Part Schematics Acquired 4 | . . . . . . . 1 . . . 2 . 1 . Parts Built . | . . . . . . . . . . . . . . . Authchips . | . . . . . . . . . . . . . . . Time . | . . . . . . . . . . . . . . . Total Part Build Rating . | . . . . . . . . . . . . . . . Parts Repaired 10 | . . . 2 . . . . . 3 . 1 . 4 . Time 460 | . . . 64 . . . . . 136 . 19 . 241 . Parts Recycled . | . . . . . . . . . . . . . . . Recycled Matter . | . . . . . . . . . . . . . . . Retrieved Matter . | . . . . . . . . . . . . . . . Retrieved Components . | . . . . . . . . . . . . . . . Parts Scanalyzed 4 | . . . . . . . 2 . . . 1 . 1 . Part Schematics Acquired 3 | . . . . . . . 1 . . . 1 . 1 . Parts Damaged . | . . . . . . . . . . . . . . . Bothacking | -11 -10 -10 -9 -9 -9 -8 -8 -8 -8 -8 -7 -7 -7 -7 ------------ Run | Jun Mat Min Mat Min Exi Min Mat Gar Sto Gar Fac Gar Fac Low Used RIF Installer . | . . . . . . . . . . . . . . . Robots Hacked . | . . . . . . . . . . . . . . . Non-combat . | . . . . . . . . . . . . . . . Combat . | . . . . . . . . . . . . . . . Robot Hacks Applied . | . . . . . . . . . . . . . . . Relay Couplers Released 45 | . . . . . . . . 16 . 14 . 15 . . Machine Destruction 45 | . . . . . . . . 16 . 14 . 15 . . Fabnet Peak Effective % . | . . . . . . . . . . . . . . . Robots Rewired 5 | . . . . . 3 . . . . 2 . . . . Allies Hacked 1 | . . . . . . . . . . . 1 . . . Hacks Repelled . | . . . . . . . . . . . . . . . Allies | -11 -10 -10 -9 -9 -9 -8 -8 -8 -8 -8 -7 -7 -7 -7 -------- Run | Jun Mat Min Mat Min Exi Min Mat Gar Sto Gar Fac Gar Fac Low Total Allies 22 | . . . . . 3 . . 2 13 2 . 2 . . Largest Group 13 | . . . . . 3 3 2 2 13 13 2 2 2 . Highest-Rated Group 266 | . . . . . 37 37 29 56 266 266 70 175 175 . Highest-Rated Ally 95 | . . . . . 21 21 21 31 31 39 39 95 95 . Total Orders 2 | . . . . . . . . . . 2 . . . . STAY 1 | . . . . . . . . . . 1 . . . . FOLLOW 1 | . . . . . . . . . . 1 . . . . Ally Attacks 225 | . . . . . . 7 4 17 37 131 28 . 1 . Total Damage 3970 | . . . . . . 115 27 268 458 1711 399 . 992 . Kills 41 | . . . . . . . . 1 5 25 6 . 4 . Allies Corrupted . | . . . . . . . . . . . . . . . Allies Melted . | . . . . . . . . . . . . . . . Intel | -11 -10 -10 -9 -9 -9 -8 -8 -8 -8 -8 -7 -7 -7 -7 ------- Run | Jun Mat Min Mat Min Exi Min Mat Gar Sto Gar Fac Gar Fac Low Robot Analysis Total . | . . . . . . . . . . . . . . . Derelict Logs Recovered 1 | . . 1 . . . . . . . . . . . . Drone Launches . | . . . . . . . . . . . . . . . Drone Recoveries . | . . . . . . . . . . . . . . . Exploration | -11 -10 -10 -9 -9 -9 -8 -8 -8 -8 -8 -7 -7 -7 -7 ------------- Run | Jun Mat Min Mat Min Exi Min Mat Gar Sto Gar Fac Gar Fac Low Turns Passed 19763 | 79 491 587 2092 143 1298 318 3673 1502 1170 2063 2031 1452 2286 578 Spaces Moved 7424 | 46 248 317 841 42 403 94 995 705 391 659 685 593 1080 325 Core 3 | 3 . . . . . . . . . . . . . . Treads 5813 | 43 248 317 841 42 403 94 982 . . 301 685 452 1080 325 Legs . | . . . . . . . . . . . . . . . Wheels 1467 | . . . . . . . 13 705 391 358 . . . . Hover 141 | . . . . . . . . . . . . 141 . . Flight . | . . . . . . . . . . . . . . . Fastest Speed 50 | 50 160 160 160 320 320 320 230 135 170 230 235 132 160 160 Average Speed 217 | 152 160 160 191 320 320 320 319 168 215 267 235 174 160 160 Slowest Speed 560 | 160 160 160 320 320 320 320 560 190 230 312 236 240 160 160 Overloaded Moves . | . . . . . . . . . . . . . . . Propulsion Burnouts . | . . . . . . . . . . . . . . . Robots Hopped . | . . . . . . . . . . . . . . . Cave-ins Triggered . | . . . . . . . . . . . . . . . Exploration Rate (%) 50 | 6 40 52 64 15 88 44 67 77 52 79 19 73 30 54 Regions Visited 14 Branch Regions 6 Pre-discovered Areas 3 | . . 1 . . 1 . . . . . . . . 1 Known Exits Taken 5 | . . . 1 . . . 1 . 1 . 1 . 1 . Unknown Exits Taken 6 | 1 1 1 . 1 1 1 . . . . . . . . Scrap Searched 2 | . . 1 . . . 1 . . . . . . . . Spaces Dug 51 | . . . . . . . 21 . 1 . 10 9 10 . Terrain Destroyed 443 | . 20 . 60 1 . 13 86 147 1 . 12 78 25 . Melee 21 | . . . . . . . . . 1 . 10 9 1 . Projectile 52 | . . . 8 1 . 1 16 . . . 2 . 24 . AOE 370 | . 20 . 52 . . 12 70 147 . . . 69 . . Terrain Rammed . | . . . . . . . . . . . . . . . Walls Destroyed . | . . . . . . . . . . . . . . . Machines Disabled . | . . . . . . . . . . . . . . . Actions | -11 -10 -10 -9 -9 -9 -8 -8 -8 -8 -8 -7 -7 -7 -7 --------- Run | Jun Mat Min Mat Min Exi Min Mat Gar Sto Gar Fac Gar Fac Low Total 9843 | 52 298 362 1203 46 413 104 1285 852 660 921 955 830 1504 358 Wait 1031 | . 14 27 233 . . 3 86 34 172 88 106 11 251 6 Move 7410 | 45 247 316 840 41 402 93 994 703 391 658 684 592 1079 325 Hop . | . . . . . . . . . . . . . . . Pick Up 113 | 1 9 . 15 2 1 1 24 4 7 10 12 17 9 1 Fast Attach 74 | 6 2 1 10 . . . 12 1 6 . 15 10 11 . Attach 63 | . . . 7 . . . 11 5 3 7 2 13 11 4 Detach 16 | . . . . . . . 3 . . . 2 6 4 1 Swap 92 | . 2 . 11 . . 2 20 3 12 6 15 10 10 1 Drop 114 | . 1 . 13 . . . 25 2 11 9 16 24 13 . Fire 636 | . 23 17 61 3 . 5 107 84 21 24 71 126 86 8 Melee 48 | . . . . . . . . . 9 . 11 16 2 10 Ram . | . . . . . . . . . . . . . . . Kick . | . . . . . . . . . . . . . . . Crush 35 | . . 1 13 . . . 3 . . . 1 . 15 2 Escape Stasis 124 | . . . . . . . . 16 8 96 . 4 . . Rewire 35 | . . . . . 10 . . . 1 23 . 1 . . Trap 52 | . . . . . . . . . 19 . 20 . 13 . Miscellaneous . | . . . . . . . . . . . . . . . Route ------- -11/Junkyard -10/Materials (discovered 2 exits: [*Min x2]) -10/Mines -9/Materials (discovered 3 exits: *Mat x2 / *Min) -9/Mines -9/Exiles -8/Mines -8/Materials (discovered 3 exits: *Fac / *Sto / Gar) -8/Garrison (discovered 3 exits: *Sto x3) -8/Storage (discovered 2 exits: *Fac / Gar) -8/Garrison (discovered 3 exits: *Fac x3) -7/Factory (discovered 2 exits: [*Fac] / Gar) -7/Garrison (discovered 3 exits: *Fac x3) -7/Factory (discovered 3 exits: [*Fac] / *Low x2) -7/Lower Caves History --------- Turn | Location | Event 2 | -11/Junkyard | Met Revision 17 3 | -11/Junkyard | Discovered new exit (range 16) 80 | -11/Junkyard | Entered Materials 312 | -10/Materials | Discovered new exit (range 12) 327 | -10/Materials | Build established: Mutant 497 | -10/Materials | Discovered new exit (range 7) 571 | -10/Materials | Entered Mines 618 | -10/Mines | Learned Materials stockpile data 894 | -10/Mines | Core integrity fell below 50% 1016 | -10/Mines | Learned location of Storage (-8) 1152 | -10/Mines | Discovered new exit (range 5) 1158 | -10/Mines | Entered Materials 1158 | -9/Materials | Evolved 2 slots: Utility x2 1274 | -9/Materials | Lost 3 parts (1n2w) 1651 | -9/Materials | Discovered new exit (range 16) 2582 | -9/Materials | Identified exit to Mines 2759 | -9/Materials | Core integrity fell below 50% 2808 | -9/Materials | Lost 3 parts (1n2u) 2845 | -9/Materials | Discovered new exit (range 14) 2902 | -9/Materials | Repaired Lgt. Treads 2941 | -9/Materials | Repaired Ion Cannon 3250 | -9/Materials | Entered Mines 3377 | -9/Mines | Deemed a non-threat by the Exiles lab entrance 3380 | -9/Mines | Discovered new exit (range 5) 3393 | -9/Mines | Entered Exiles 3393 | -9/Exiles | Found Exiles lab destroyed 4347 | -9/Exiles | Opened EX-Vault 4369 | -9/Exiles | Found Cloak of Protection 4549 | -9/Exiles | Learned location of Zion (-6) 4665 | -9/Exiles | Discovered new exit (range 10) 4691 | -9/Exiles | Entered Mines 4691 | -8/Mines | Accompanied by 3 allies 4894 | -8/Mines | Discovered new exit (range 9) 5009 | -8/Mines | Entered Materials 5009 | -8/Materials | Accompanied by 2 allies 5009 | -8/Materials | Evolved 2 slots: Utility x2 5186 | -8/Materials | Discovered new exit (range 14) 5522 | -8/Materials | Build established: Scavenger-Mutant 6934 | -8/Materials | Lost 4 parts (1n3w) 7266 | -8/Materials | Lost 3 parts (1n2w) 7452 | -8/Materials | Discovered new exit (range 16) 8157 | -8/Materials | Identified exit to Garrison 8617 | -8/Materials | Build established: Hacker-Mutant 8682 | -8/Materials | Entered Garrison 8833 | -8/Garrison | Phase Generator disabled 8872 | -8/Garrison | Rescued a captive Derelict 8879 | -8/Garrison | Rescued a captive Derelict 8927 | -8/Garrison | Build established: Scavenger-Mutant 8942 | -8/Garrison | Triggered checkpoint 8961 | -8/Garrison | Garrison Relay disabled 8975 | -8/Garrison | Garrison Relay disabled 8990 | -8/Garrison | Discovered new exit (range 61) 8990 | -8/Garrison | Discovered new exit (range 68) 8990 | -8/Garrison | Discovered new exit (range 31) 9066 | -8/Garrison | Triggered checkpoint 9159 | -8/Garrison | Garrison Relay disabled 9160 | -8/Garrison | Triggered checkpoint 9355 | -8/Garrison | Spotted B-75 Beast 9396 | -8/Garrison | Triggered checkpoint 9398 | -8/Garrison | Core integrity fell below 50% 9568 | -8/Garrison | Lost 3 parts (1p1u1w) 9742 | -8/Garrison | Triggered checkpoint 9957 | -8/Garrison | Garrison Relay disabled 10043 | -8/Garrison | Attempted to access garrison exit controls, blocked by remote lockdown 10184 | -8/Garrison | Entered Storage 10622 | -8/Storage | Repaired Adv. Treads 10684 | -8/Storage | Repaired Adv. Beam Rifle 10723 | -8/Storage | Repaired Hrd. Medium Armor Plating 10780 | -8/Storage | Allied Derelicts emerged from ambush trap array 11120 | -8/Storage | Assisted by bots powering up and referring to "LRC-V3" 11124 | -8/Storage | Discovered new exit (range 16) 11346 | -8/Storage | Identified exit to Garrison 11354 | -8/Storage | Entered Garrison 11354 | -8/Garrison | Accompanied by 13 allies 11410 | -8/Garrison | Triggered checkpoint 11424 | -8/Garrison | Build established: Commander-Mutant 11456 | -8/Garrison | Garrison Relay disabled 11654 | -8/Garrison | Triggered checkpoint 11706 | -8/Garrison | Triggered checkpoint 11798 | -8/Garrison | Triggered checkpoint 11889 | -8/Garrison | Garrison Relay disabled 12168 | -8/Garrison | Discovered new exit (range 12) 12296 | -8/Garrison | Triggered checkpoint 12343 | -8/Garrison | Build established: Hacker-Mutant 12346 | -8/Garrison | Triggered checkpoint 12394 | -8/Garrison | Garrison Relay disabled 12618 | -8/Garrison | Discovered new exit (range 56) 12618 | -8/Garrison | Discovered new exit (range 29) 12618 | -8/Garrison | Discovered new exit (range 32) 12710 | -8/Garrison | Triggered checkpoint 12782 | -8/Garrison | Triggered checkpoint 12796 | -8/Garrison | Garrison Relay disabled 12801 | -8/Garrison | Build established: Trapper-Mutant 13417 | -8/Garrison | Entered Factory 13417 | -7/Factory | Accompanied by 2 allies 13417 | -7/Factory | Evolved 2 slots: Propulsion x2 13853 | -7/Factory | Build established: Hacker-Mutant 13947 | -7/Factory | Repaired Hrd. Medium Armor Plating 14368 | -7/Factory | Discovered new exit (range 4) 15324 | -7/Factory | Identified exit to Garrison 15327 | -7/Factory | Build established: Trapper-Mutant 15448 | -7/Factory | Entered Garrison 15557 | -7/Garrison | Garrison Relay disabled 15558 | -7/Garrison | Triggered checkpoint 15656 | -7/Garrison | Triggered checkpoint 15812 | -7/Garrison | Lost 4 parts (1p2n1u) 15908 | -7/Garrison | Triggered checkpoint 15996 | -7/Garrison | Discovered new exit (range 12) 15996 | -7/Garrison | Discovered new exit (range 43) 15996 | -7/Garrison | Discovered new exit (range 70) 16137 | -7/Garrison | Garrison Relay disabled 16359 | -7/Garrison | Triggered checkpoint 16609 | -7/Garrison | Triggered checkpoint 16699 | -7/Garrison | Found Hvy. Reactive Plating 16703 | -7/Garrison | Found Hvy. Reactive Plating 16898 | -7/Garrison | Found embedded Infiltrators 16900 | -7/Garrison | Entered Factory 16900 | -7/Factory | Accompanied by 2 allies 16980 | -7/Factory | Lost 3 parts (2u1w) 17182 | -7/Factory | Discovered new exit (range 9) 17203 | -7/Factory | Core integrity fell below 50% 17424 | -7/Factory | Repaired Broken Imp. Heavy Treads? 17537 | -7/Factory | Repaired Adv. Cooling System? 17700 | -7/Factory | First assault squad dispatched 17926 | -7/Factory | Repaired Imp. Heavy Treads 18468 | -7/Factory | Repaired Hvy. Linear Accelerator 18607 | -7/Factory | Identified exit to Lower Caves 19148 | -7/Factory | Garrison activated, responded to threat 19171 | -7/Factory | Core integrity fell below 20% 19186 | -7/Factory | Entered Lower Caves 19192 | -7/Lower Caves | Met a Warlord Commander 19193 | -7/Lower Caves | Learned location of Warlord (-4) 19199 | -7/Lower Caves | Found Encrypted Comm Array 19726 | -7/Lower Caves | Encountered a Warlord checkpoint 19738 | -7/Lower Caves | Attracted the attention of an 0b10 outpost 19764 | -7/Lower Caves | Destroyed by Y-64 Sentinel with KE Penetrator Last Messages --------------- 19750_ Destroyed Axe. 19750_ L-41 Fighter system corrupted by crushing effect. 19750_ Penetrated by Slug. 19751_ L-41 Fighter system terminally corrupted. 19751_ Core Shielding fried. 19751_ Microactuators fried. 19751_ Imp. Melee Analysis Suite fried. 19751_ Unknown Leg fried. 19755_ System corrupted: Substantial component data lost. 19755_ B-48 Gladiator suffers critical hit (Smash). 19755_ B-48 Gladiator destroyed. 19757_ 0Y-KLQ(M) destroyed. 19757_ Penetrated by Slug. 19761_ Imp. Heavy Treads destroyed. 19761_ S-27 Virus suffers critical hit (Smash). 19761_ S-27 Virus destroyed. 19761_ Mic. Nuclear Core destroyed. 19762_ Penetrated by Slug. 19764_ Imp. Heavy Treads destroyed. 19764_ Penetrated by Slug. Map ----- +----------------------------------------------------+ | ?????????????????????????????????????????????????? | | ?????????????????????????????????????????????????? | | ?????????????????????????????????????????????????? | | ?????????????????????????????????????????????????? | | ?????????????????????????????????????????????????? | | ?????????????????????????????????????????????????? | | ?????????????????????????????????????????????????? | | ?????????????????????????????????????????????????? | | ?????????????????????????????????????????????????? | | ?????????????????????????????????????????????????? | | ?????????????????????????????????????????????????? | | ???????????????????????????????###???????????????? | | ??????????????????????????????## #???????????????? | | ??????????????????????????????# ##????########??? | | ?????????????###??#####???????# #????# ##?? | | ????????????## ### #???????# #????# ### | | ????????????# #????#### #????# | | ????????????# #?##### ###### | | ????????????## ### ###### | | ?????????????## #????? | | ??????????????## ####### #???? | | ???????????????# ## #????# | | ???????????????## ###### ######## #???## | | ????????????????####????# #?? ""# #??## # | | ???????????????????????##%#? "# #??## ##? | | ???????????????????????#%@#" "# #????###??? | | ???????????????????????#Y/#" "# ????????? | | ???????????????????????##g%## ### ####???????? | | ????????????????????????# ; #? ##??????????? | | ????????????????????????# g % ##???????????? | | ????????????????????????# #????????????? | | ????????????????????????# ##### #???????????? | | ???????????????????????? ????? ?????????? | | ???????????????????????? % ?????? ## ??????????? | | ????????????????????????=% ???????????????????? | | ???????????????????????? ???????????????????? | | ??????????????????????? #??????????????????? | | ??????????????????????? ##??????????????????? | | ??????????????????????? #???????????????????? | | ??????????????????????? ###???????????????????? | | ?????????????????????? #?????????????????????? | | ?????????????????????? ?????????????????????? | | ?????????????????????? ?????????????????????? | | ?????????????????????? ?????????????????????? | | ??????????????????????? #?????????????????????? | | ?????????????????????????????????????????????????? | | ?????????????????????????????????????????????????? | | ?????????????????????????????????????????????????? | | ?????????????????????????????????????????????????? | | ?????????????????????????????????????????????????? | +----------------------------------------------------+ Best States ------------- Heat Dissipation 78 Energy Generation 19 Energy Capacity 315 Matter Stores 300 Matter Capacity 300 Sight Range 16 Terrain Scan Density 10 Additional Mass Support 6 Armor Coverage 375 Evasion (%) 40 Recoil Reduction 8 Offensive Hacking 30 Authchip Count 3 Trap Extractor Capacity 8 Item Schematics ----------------- Imp. VTOL Module | -8/Materials | Scanalyzed Cmb. Gravmag System | -7/Factory | Scanalyzed Stasis Canceller | -7/Factory | Hacked Hvy. Reactive Plating | -7/Factory | Scanalyzed Robot Schematics ------------------ None Fabricated ------------ Nothing Alien Tech Used ----------------- None Achievements -------------- None Challenges ------------ None Game ------ Seed RecoilImprovedSuperbattery Manual? 0 Play Time 01:51:25 Cumulative 491.8 hours Start 2023.05.11 @ 20:23:37 End 2023.05.19 @ 15:46:57 Sessions 3 Manual Loads 0 Difficulty Rogue Special Mode None Game No. 527 Rogue 518 Adventurer 8 Explorer 1 Win Type - Total 9 Types 5/1/3/0/0/0/0/0/0 Lore% 82 Gallery% 91 Achievement% 71 Wizard Run 0 Options --------- ASCII 0 Keyboard 0 Movement Numpad Keybinds 1 Fullscreen 2 Font 18/Terminus Map View 76x50 Tactical HUD 1 Map Filters NONE Filters NONE Steam 1 RUN: ea0dcec0-bb69-403b-aa81-b4bfa41f8c0e